bitfinex-derivatives/quotes_SOLF0:USTF0_20251208
["timestamp","ask_amount","ask_price","bid_price","bid_amount"]
[1765208814414,65.75,135.55,135.51,3.06]
[1765208814611,0.04944705,135.54,135.52,0.04722113]
[1765208815906,0.04944705,135.54,135.52,3.10722113]
[1765208816917,0.04944705,135.54,135.52,9.74822113]
[1765208817119,0.04944705,135.54,135.52,6.68822113]
[1765208817425,0.04944705,135.54,135.52,0.04722113]
[1765208818224,3.05944705,135.54,135.52,0.04722113]
[1765208819024,0.04944705,135.54,135.52,0.04722113]
[1765208819718,0.04944705,135.54,135.52,9.88832113]
[1765208820223,0.04944705,135.54,135.52,6.68832113]
[1765208820927,0.04944705,135.54,135.53,3.2]
[1765208821119,3.21,135.62,135.55,3.2]
[1765208821319,9.8474,135.6,135.51,106.5108]
[1765208821829,3.21,135.6,135.53,3.2]
[1765208822029,0.05449155,135.58,135.55,3.25185288]
[1765208822927,0.05449155,135.58,135.57,3.2]
[1765208823727,62.74,135.63,135.58,3.2]
[1765208823932,62.74,135.63,135.59,3.2]
[1765208824419,62.74,135.63,135.61,6.6366]
[1765208824625,6.6341,135.67,135.61,9.8366]
[1765208824825,0.05492043,135.65,135.63,0.04841785]
[1765208825027,0.05492043,135.65,135.64,3.2]
[1765208825827,3.26492043,135.65,135.63,0.04841785]
[1765208826321,0.05492043,135.65,135.63,0.04841785]
[1765208826636,3.21,135.64,135.55,106.4799]
[1765208826835,3.21,135.64,135.56,106.4761]
[1765208827033,3.21,135.63,135.56,3.2]
[1765208828032,3.25802594,135.61,135.58,0.04867653]
[1765208829331,0.04802594,135.61,135.58,0.04867653]
[1765208829535,3.25802594,135.61,135.58,0.04867653]
[1765208830333,106.50012594,135.61,135.58,0.04867653]
[1765208830538,6.6383,135.58,135.51,3.2]
[1765208830739,3.21,135.57,135.51,3.2]
[1765208830942,9.8489,135.57,135.51,9.8415]
[1765208831639,0.05120364,135.55,135.53,3.251992]
[1765208831839,0.04981167,135.55,135.53,3.251992]
[1765208832538,0.04981167,135.55,135.53,9.892392]
[1765208832753,0.04981167,135.55,135.53,0.051992]
[1765208833427,3.25981167,135.55,135.53,0.051992]
[1765208833836,0.04981167,135.55,135.53,0.051992]
[1765208834440,0.04981167,135.55,135.53,9.892392]
[1765208835144,0.04981167,135.55,135.53,0.051992]
[1765208835145,3.25981167,135.55,135.53,0.051992]
[1765208838230,0.04981167,135.55,135.53,0.051992]
[1765208838838,3.21981167,135.55,135.53,0.051992]
[1765208839042,3.21981167,135.55,135.49,3.2]
[1765208839244,9.8108,135.53,135.45,3.06]
[1765208839439,9.8108,135.53,135.48,6.643]
[1765208839440,3.17,135.52,135.48,6.643]
[1765208839743,62.74,135.54,135.48,3.06]
[1765208839934,62.74,135.54,135.49,3.06]
[1765208840130,62.74,135.54,135.52,9.701]
[1765208840131,0.0514019,135.53,135.52,9.701]
[1765208840541,3.2214019,135.53,135.5,0.04742311]
[1765208841530,3.17,135.52,135.5,0.04742311]
[1765208843042,9.8113,135.52,135.5,0.04742311]
[1765208843833,9.8118,135.51,135.46,3.06]
[1765208844031,5.31034783,135.54,135.48,3.06]
[1765208844232,65.91,135.55,135.48,3.06]
[1765208844434,62.74,135.55,135.51,3.06]
[1765208844841,8.82743385,135.61,135.54,3.06]
[1765208844842,9.85484483,135.61,135.54,3.06]
[1765208845037,3.17,135.59,135.55,6.6396]
[1765208845245,3.22231347,135.59,135.56,0.05614596]
[1765208845840,9.8088,135.57,135.51,9.7014]
[1765208846350,3.17,135.57,135.52,9.701]
[1765208846646,3.17,135.57,135.49,103.3277]
[1765208846647,3.17,135.57,135.53,0.05668164]
[1765208846847,3.17,135.55,135.53,0.05668164]
[1765208847331,3.17,135.54,135.53,0.05668164]
[1765208849347,3.17,135.53,135.49,6.6425]
[1765208849547,3.17,135.53,135.47,6.6433]
[1765208850147,5.31325513,135.55,135.48,106.395]
[1765208850445,0.04967702,135.53,135.51,3.06]
[1765208850943,0.04967702,135.53,135.51,9.7015]
[1765208851147,13.302514,135.6,135.53,3.06]
[1765208851340,3.17,135.6,135.53,3.06]
[1765208851540,3.17,135.59,135.55,6.6396]
[1765208851945,3.17,135.59,135.53,3.06]
[1765208852343,0.05086333,135.57,135.55,0.05303481]
[1765208853646,3.22086333,135.57,135.55,0.05303481]
[1765208855652,3.17,135.56,135.49,6.6423]
[1765208856243,6.6403,135.54,135.47,9.7033]
[1765208856450,3.17,135.53,135.47,9.7033]
[1765208856852,0.05120303,135.51,135.49,0.05124504]
[1765208857955,0.05120303,135.51,135.49,3.11124504]
[1765208858556,0.05120303,135.51,135.49,0.05124504]
[1765208860755,0.05120303,135.51,135.49,3.11124504]
[1765208861652,0.05120303,135.51,135.49,0.05124504]
[1765208861653,3.22120303,135.51,135.49,0.05124504]
[1765208862249,3.22120303,135.51,135.42,4.45232624]
[1765208862552,3.22120303,135.51,135.41,3.06]
[1765208862553,3.17,135.51,135.45,3.06]
[1765208862742,3.17,135.51,135.44,6.6448]
[1765208863352,0.04659542,135.49,135.46,3.11362334]
[1765208864051,0.04659542,135.49,135.48,3.06]
[1765208864351,10.16147713,135.57,135.5,3.06]
[1765208864557,3.17,135.58,135.5,3.06]
[1765208865455,0.05018568,135.55,135.53,0.04865298]
[1765208865656,0.05018568,135.55,135.53,3.10865298]
[1765208866155,0.05018568,135.55,135.53,9.74895298]
[1765208866549,0.05018568,135.55,135.54,3.06]
[1765208867156,9.806,135.63,135.56,3.06]
[1765208867359,3.17,135.63,135.57,3.06]
[1765208868252,0.04817913,135.61,135.59,0.05650397]
[1765208868454,0.04817913,135.61,135.59,3.06650397]
[1765208868855,0.04817913,135.61,135.6,3.01]
[1765208869555,3.30817913,135.61,135.59,0.05650397]
[1765208869761,0.04817913,135.61,135.59,0.05650397]
[1765208870152,9.8973,135.6,135.59,0.05650397]
[1765208873851,6.6373,135.6,135.59,0.05650397]
[1765208874455,3.30817913,135.61,135.59,0.05650397]
[1765208875262,9.94507913,135.61,135.59,0.05650397]
[1765208877664,6.68507913,135.61,135.59,0.05650397]
[1765208877869,0.04817913,135.61,135.59,0.05650397]
[1765208878056,0.04817913,135.61,135.59,3.06650397]
[1765208880669,6.71144581,135.7,135.64,3.18]
[1765208880973,6.6315,135.72,135.66,6.6342]
[1765208881271,65.94,135.73,135.66,3.18]
[1765208881472,88.43163279,135.73,135.66,3.18]
[1765208881668,6.6325,135.7,135.68,0.04909266]
[1765208881863,3.2,135.69,135.68,0.04909266]
[1765208882369,3.2,135.68,135.63,3.18]
[1765208883272,6.6331,135.69,135.63,3.18]
[1765208883464,0.04753689,135.67,135.65,0.04985374]
[1765208884072,0.04753689,135.67,135.65,3.22985374]
[1765208884669,0.04753689,135.67,135.65,0.04985374]
[1765208884873,3.24753689,135.67,135.65,0.04985374]
[1765208886566,3.24753689,135.67,135.58,3.18]
[1765208886874,3.2,135.65,135.58,3.18]
[1765208887363,3.2,135.65,135.58,6.6379]
[1765208887571,0.04782405,135.63,135.6,3.22654679]
[1765208887878,3.24782405,135.63,135.6,0.04654679]
[1765208888279,3.24782405,135.63,135.6,106.46934679]
[1765208888280,0.04782405,135.63,135.6,106.46934679]
[1765208888578,3.24782405,135.63,135.6,0.04654679]
[1765208888778,0.04782405,135.63,135.6,6.68354679]
[1765208888973,0.04782405,135.63,135.6,9.86354679]
[1765208889273,0.04782405,135.63,135.6,3.22654679]
[1765208889480,0.04782405,135.63,135.62,3.18]
[1765208890067,0.04782405,135.63,135.61,9.8166]
[1765208890463,0.04782405,135.63,135.6,0.04654679]
[1765208890772,0.04782405,135.63,135.6,3.22654679]
[1765208891372,0.04782405,135.63,135.61,9.8164]
[1765208893074,0.04782405,135.63,135.61,6.6364]
[1765208893369,0.04782405,135.63,135.6,0.04654679]
[1765208893572,3.24782405,135.63,135.6,0.04654679]
[1765208893775,0.04782405,135.63,135.6,0.04654679]
[1765208893976,0.04782405,135.63,135.6,3.22654679]
[1765208894580,0.04782405,135.63,135.61,9.8166]
[1765208895080,0.04782405,135.63,135.62,3.18]
[1765208895277,0.04782405,135.63,135.6,3.22654679]
[1765208896483,0.04782405,135.63,135.61,6.6366]
[1765208896682,62.72,135.68,135.62,3.18]
[1765208897179,62.72,135.68,135.64,9.8152]
[1765208897883,0.05274599,135.67,135.65,9.86965217]
[1765208898083,0.05274599,135.67,135.66,3.18]
[1765208898479,0.05274599,135.67,135.65,0.05505217]
[1765208898670,0.05274599,135.67,135.65,3.13505217]
[1765208899070,6.6322,135.71,135.65,3.13505217]
[1765208899291,9.9422,135.71,135.66,9.7141]
[1765208899480,3.31,135.68,135.65,0.05505217]
[1765208900079,3.31,135.66,135.65,0.05505217]
[1765208900379,3.31,135.66,135.57,7.53232624]
[1765208901381,0.04873132,135.63,135.6,0.05148175]
[1765208901576,0.04873132,135.63,135.6,3.13148175]
[1765208902486,0.04873132,135.63,135.6,9.76858175]
[1765208902680,0.04873132,135.63,135.6,3.13148175]
[1765208903077,0.04873132,135.63,135.62,3.08]
[1765208903287,3.31,135.72,135.64,103.2143]
[1765208903487,3.31,135.72,135.66,3.08]
[1765208903885,62.7,135.74,135.66,3.08]
[1765208904380,3.31,135.73,135.66,6.6341]
[1765208904691,3.35880148,135.71,135.68,0.05408613]
[1765208904989,0.04880148,135.71,135.68,3.13408613]
[1765208905382,0.04880148,135.71,135.68,0.05408613]
[1765208905577,0.04880148,135.71,135.68,6.68718613]
[1765208905775,0.04880148,135.71,135.68,9.76718613]
[1765208906794,0.04880148,135.71,135.68,6.68718613]
[1765208907193,3.35880148,135.71,135.68,6.68718613]
[1765208907387,3.35880148,135.71,135.68,0.05408613]
[1765208908478,3.35880148,135.71,135.61,106.3156]
[1765208908678,3.31,135.68,135.61,9.7164]
[1765208909685,3.36335858,135.66,135.63,0.05521676]
[1765208909994,3.36335858,135.66,135.59,6.6374]
[1765208910385,3.31,135.62,135.58,3.08]
[1765208910583,3.31,135.62,135.57,6.6386]
[1765208910785,0.05511285,135.61,135.58,0.04863819]
[1765208910996,3.36511285,135.61,135.58,0.04863819]
[1765208912091,10.00201285,135.61,135.58,0.04863819]
[1765208912294,3.31,135.6,135.58,0.04863819]
[1765208914896,3.31,135.59,135.58,0.04863819]
[1765208915288,3.31,135.6,135.58,0.04863819]
[1765208915492,3.31,135.6,135.52,3.08]
[1765208916603,0.0500762,135.57,135.55,3.12992712]
[1765208917991,0.0500762,135.57,135.55,0.04992712]
[1765208918388,0.0500762,135.57,135.55,9.76942712]
[1765208919901,0.0500762,135.57,135.56,3.08]
[1765208920995,5.25369557,135.66,135.59,3.08]
[1765208921196,3.31,135.66,135.55,3.08]
[1765208921398,3.31,135.63,135.55,3.08]
[1765208921803,3.31,135.63,135.58,0.04969774]
[1765208921995,3.35659732,135.6,135.58,0.04969774]
[1765208922698,0.04659732,135.6,135.58,3.12969774]
[1765208923901,0.04659732,135.6,135.59,3.08]
[1765208925113,3.31,135.67,135.61,3.08]
[1765208926014,0.05135194,135.65,135.63,0.04671201]
[1765208926204,3.36135194,135.65,135.63,0.04671201]
[1765208926806,0.05135194,135.65,135.63,0.04671201]
[1765208927006,3.36135194,135.65,135.63,0.04671201]
[1765208930611,9.99625194,135.65,135.63,0.04671201]
[1765208930810,3.31,135.64,135.63,0.04671201]
[1765208931710,0.05135194,135.65,135.63,0.04671201]
[1765208932209,3.36135194,135.65,135.63,0.04671201]
[1765208932716,9.99625194,135.65,135.63,0.04671201]
[1765208932911,3.31,135.64,135.63,0.04671201]
[1765208933215,3.31,135.64,135.58,6.6378]
[1765208933609,3.31,135.62,135.57,3.16]
[1765208934113,0.05384129,135.61,135.58,0.05407949]
[1765208934314,0.05384129,135.61,135.58,6.69217949]
[1765208934711,0.05384129,135.61,135.58,9.85217949]
[1765208934914,0.05384129,135.61,135.59,3.16]
[1765208935105,0.05384129,135.61,135.58,6.69217949]
[1765208935310,3.36384129,135.61,135.58,0.05407949]
[1765208936111,0.05384129,135.61,135.58,0.05407949]
[1765208936317,3.36384129,135.61,135.58,0.05407949]
[1765208937526,62.77384129,135.61,135.58,3.21407949]
[1765208937703,0.05384129,135.61,135.58,3.21407949]
[1765208938218,0.05384129,135.61,135.59,3.16]
[1765208938711,0.05384129,135.61,135.58,6.69207949]
[1765208938910,0.05384129,135.61,135.58,0.05407949]
[1765208939608,0.05384129,135.61,135.58,3.12407949]
[1765208940417,0.05384129,135.61,135.6,3.07]
[1765208940624,3.31,135.64,135.6,3.07]
[1765208940806,3.31,135.64,135.58,3.07]
[1765208941210,66.03,135.65,135.61,3.07]
[1765208941516,0.05012808,135.64,135.62,0.04953596]
[1765208941708,0.05012808,135.64,135.62,3.11953596]
[1765208942418,0.05012808,135.64,135.62,0.04953596]
[1765208942618,3.36012808,135.64,135.62,0.04953596]
[1765208943320,0.05012808,135.64,135.62,0.04953596]
[1765208943705,0.05012808,135.64,135.62,3.11953596]
[1765208943905,0.05012808,135.64,135.62,9.75563596]
[1765208944612,0.05012808,135.64,135.62,3.11953596]
[1765208944812,3.36012808,135.64,135.62,0.04953596]
[1765208945009,0.05012808,135.64,135.62,0.04953596]
[1765208945214,0.05012808,135.64,135.62,3.11953596]
[1765208945412,3.36012808,135.64,135.62,0.04953596]
[1765208945920,0.05012808,135.64,135.62,3.11953596]
[1765208946114,0.05012808,135.64,135.62,0.04953596]
[1765208946423,3.36012808,135.64,135.62,0.04953596]
[1765208946724,0.05012808,135.64,135.62,3.11953596]
[1765208947107,0.05012808,135.64,135.62,0.04953596]
[1765208948124,0.05012808,135.64,135.62,3.11953596]
[1765208949518,0.05012808,135.64,135.62,0.04953596]
[1765208950124,3.36012808,135.64,135.62,0.04953596]
[1765208950923,9.99562808,135.64,135.62,0.04953596]
[1765208951524,3.31,135.63,135.62,0.04953596]
[1765208953429,3.31,135.62,135.57,3.07]
[1765208953629,3.31,135.6,135.53,3.07]
[1765208953927,3.31,135.59,135.53,3.07]
[1765208954314,3.36222537,135.57,135.55,0.05443923]
[1765208954922,3.36222537,135.57,135.5,3.07]
[1765208955519,3.31,135.54,135.5,3.07]
[1765208956022,0.0480195,135.53,135.51,0.04742126]
[1765208957326,3.3580195,135.53,135.51,0.04742126]
[1765208957927,3.3580195,135.53,135.45,9.7145]
[1765208958134,3.3580195,135.53,135.45,3.07]
[1765208958533,3.07,135.52,135.42,3.07]
[1765208958726,3.07,135.5,135.42,3.07]
[1765208959038,0.05439211,135.47,135.45,0.03925714]
[1765208961235,3.12439211,135.47,135.45,0.03925714]
[1765208961437,65.81,135.46,135.39,3.07]
[1765208962025,9.715,135.45,135.39,3.07]
[1765208962228,3.07,135.44,135.39,3.07]
[1765208962534,3.11949219,135.43,135.39,3.07]
[1765208962833,3.11949219,135.43,135.38,6.6478]
[1765208963222,0.04949219,135.43,135.41,3.07]
[1765208964627,0.04949219,135.43,135.42,3.07]
[1765208965342,0.04949219,135.43,135.4,3.07]
[1765208966232,0.04949219,135.43,135.4,9.7168]
[1765208967239,0.04949219,135.43,135.41,9.7163]
[1765208967439,0.04949219,135.43,135.42,3.07]
[1765208969132,0.04949219,135.43,135.41,6.6463]
[1765208969439,0.04949219,135.43,135.39,9.7173]
[1765208970131,0.04949219,135.43,135.4,3.07]
[1765208971135,0.04949219,135.43,135.41,3.07]
[1765208972435,0.04949219,135.43,135.41,9.7164]
[1765208972640,0.04949219,135.43,135.42,3.07]
[1765208974152,3.07,135.5,135.44,3.07]
[1765208974638,9.7118,135.51,135.46,9.714]
[1765208974847,62.78,135.53,135.43,103.3761]
[1765208974848,65.85,135.53,135.47,3.07]
[1765208975146,0.05086374,135.51,135.49,3.1194922]
[1765208975733,0.05086374,135.51,135.5,3.07]
[1765208975935,0.05086374,135.51,135.49,9.7619922]
[1765208976538,3.12086374,135.51,135.49,0.0494922]
[1765208978441,0.05086374,135.51,135.49,3.1194922]
[1765208979337,0.05086374,135.51,135.5,3.07]
[1765208979531,107.71567151,135.59,135.5,3.07]
[1765208979532,3.07,135.58,135.51,3.07]
[1765208979740,62.78,135.59,135.52,3.07]
[1765208979941,3.07,135.58,135.49,106.3971]
[1765208980231,3.07,135.58,135.5,3.07]
[1765208980436,0.05036314,135.55,135.53,3.12157578]
[1765208981243,0.05036314,135.55,135.53,9.76197578]
[1765208981443,0.05036314,135.55,135.54,3.07]
[1765208982339,0.05036314,135.55,135.53,0.05157578]
[1765208982844,3.12036314,135.55,135.53,0.05157578]
[1765208984544,0.05036314,135.55,135.53,0.05157578]
[1765208985239,0.05036314,135.55,135.53,9.76217578]
[1765208985846,0.05036314,135.55,135.53,6.69217578]
[1765208986346,0.05036314,135.55,135.53,9.76217578]
[1765208988048,0.05036314,135.55,135.54,3.07]
[1765208989045,3.23,135.59,135.55,6.6393]
[1765208989248,62.76,135.61,135.55,3.07]
[1765208989450,62.76,135.61,135.57,3.07]
[1765208989649,62.76,135.61,135.57,9.7083]
[1765208989851,62.76,135.61,135.57,3.07]
[1765208990051,3.23,135.6,135.54,3.07]
[1765208990248,3.28085915,135.6,135.58,0.05602138]
[1765208990455,0.05085915,135.6,135.58,3.12602138]
[1765208990844,3.28085915,135.6,135.58,0.05602138]
[1765208992138,3.23,135.58,135.52,3.07]
[1765208992844,3.23,135.57,135.53,6.6406]
[1765208993045,3.23,135.57,135.53,3.07]
[1765208993352,0.05177818,135.56,135.54,0.05039284]
[1765208995252,0.05177818,135.56,135.55,3.07]
[1765208998255,65.99,135.61,135.55,3.07]
[1765208998458,62.76,135.61,135.58,9.7081]
[1765208999364,62.81592392,135.61,135.58,9.7576452]
[1765208999658,62.81592392,135.61,135.6,3.24]
[1765208999858,0.05592392,135.61,135.6,3.24]
[1765209001065,65.81,135.67,135.63,3.24]
[1765209001262,65.81,135.67,135.6,3.24]
[1765209001263,3.07,135.66,135.6,3.24]
[1765209001561,3.07,135.66,135.56,3.24]
[1765209001562,9.706,135.63,135.56,3.24]
[1765209002066,0.05205786,135.61,135.58,0.05169312]
[1765209002258,0.05205786,135.61,135.58,3.29169312]
[1765209002853,3.12205786,135.61,135.58,0.05169312]
[1765209003054,3.07,135.6,135.58,0.05169312]
[1765209003260,3.07,135.6,135.52,3.24]
[1765209003458,3.07,135.58,135.54,3.24]
[1765209003660,65.81,135.61,135.54,3.24]
[1765209004256,0.05628338,135.59,135.56,6.68984681]
[1765209004454,0.05628338,135.59,135.57,3.24]
[1765209004765,0.05628338,135.59,135.57,9.8785]
[1765209004954,0.05628338,135.59,135.58,3.24]
[1765209006075,0.05628338,135.59,135.57,6.6385]
[1765209006369,0.05628338,135.59,135.58,3.24]
[1765209006969,3.12628338,135.59,135.56,0.05074681]
[1765209007468,3.07,135.58,135.56,0.05074681]
[1765209008271,3.07,135.57,135.56,0.05074681]
[1765209008472,3.12628338,135.59,135.56,0.05074681]
[1765209008769,0.05628338,135.59,135.56,3.29074681]
[1765209008962,0.05628338,135.59,135.56,9.92984681]
[1765209009268,0.05628338,135.59,135.57,3.24]
[1765209009657,0.05628338,135.59,135.57,9.8786]
[1765209009859,0.05628338,135.59,135.56,0.05074681]
[1765209010674,3.12628338,135.59,135.56,0.05074681]
[1765209011272,3.07,135.58,135.56,0.05074681]
[1765209011769,0.05628338,135.59,135.56,0.05074681]
[1765209012268,0.05628338,135.59,135.56,3.29074681]
[1765209013677,0.05628338,135.59,135.56,9.92984681]
[1765209014568,0.05628338,135.59,135.57,3.24]
[1765209014770,3.12628338,135.59,135.56,0.05074681]
[1765209016077,0.05628338,135.59,135.56,3.29074681]
[1765209016777,0.05628338,135.59,135.56,9.92984681]
[1765209016973,0.05628338,135.59,135.57,3.24]
[1765209017184,0.05628338,135.59,135.56,9.92984681]
[1765209017481,0.05628338,135.59,135.58,3.24]
[1765209017989,0.05628338,135.59,135.57,6.6386]
[1765209020875,8.40935177,135.58,135.56,0.05074681]
[1765209021373,3.14,135.57,135.56,0.05074681]
[1765209023278,8.40935177,135.57,135.56,0.05074681]
[1765209023984,3.14,135.57,135.56,0.05074681]
[1765209024286,8.40935177,135.57,135.56,0.05074681]
[1765209025682,3.14,135.54,135.47,3.21]
[1765209025879,3.14,135.53,135.5,6.642]
[1765209026483,3.14,135.53,135.49,3.21]
[1765209026690,0.05544049,135.52,135.5,3.26593619]
[1765209027389,5.26935177,135.56,135.53,3.21]
[1765209027584,62.74,135.56,135.53,3.21]
[1765209027783,68.00935177,135.56,135.53,3.21]
[1765209027976,62.74,135.56,135.54,3.21]
[1765209028381,62.79671044,135.56,135.54,3.25989081]
[1765209028886,0.05671044,135.56,135.54,9.89999081]
[1765209030390,0.05671044,135.56,135.54,0.04989081]
[1765209031291,3.14,135.55,135.48,3.21]
[1765209031590,3.14,135.54,135.48,3.21]
[1765209031776,9.7802,135.54,135.49,9.8525]
[1765209032293,9.82956505,135.53,135.5,0.05308364]
[1765209032480,3.18886505,135.53,135.5,0.05308364]
[1765209032786,0.04886505,135.53,135.5,3.26308364]
[1765209033192,0.04886505,135.53,135.5,9.90508364]
[1765209033585,3.18886505,135.53,135.5,0.05308364]
[1765209034082,65.92886505,135.53,135.5,0.05308364]
[1765209034283,3.14,135.52,135.5,0.05308364]
[1765209035291,106.4562,135.51,135.44,3.21]
[1765209035482,103.3106,135.52,135.42,3.21]
[1765209035483,3.14,135.5,135.42,3.21]
[1765209035793,3.14,135.5,135.43,3.21]
[1765209036091,5.27404911,135.52,135.46,3.21]
[1765209036286,72.55692819,135.53,135.46,3.21]
[1765209036504,0.05423829,135.5,135.48,0.04785614]
[1765209040889,0.05423829,135.5,135.48,3.25785614]
[1765209041188,0.05423829,135.5,135.49,3.21]
[1765209041484,65.9,135.56,135.49,3.21]
[1765209041485,6.6398,135.55,135.5,3.21]
[1765209041884,9.7798,135.55,135.5,3.21]
[1765209042491,0.05283496,135.54,135.51,0.05451365]
[1765209043289,0.05283496,135.54,135.51,3.26451365]
[1765209044696,3.19283496,135.54,135.51,3.26451365]
[1765209044990,3.14,135.53,135.51,0.05451365]
[1765209046393,6.69333496,135.54,135.51,0.05451365]
[1765209046394,3.19283496,135.54,135.51,0.05451365]
[1765209046998,3.19283496,135.54,135.51,9.90601365]
[1765209047597,0.05283496,135.54,135.52,3.21]
[1765209047990,0.05283496,135.54,135.53,3.29]
[1765209049192,0.05283496,135.54,135.51,3.34451365]
[1765209049996,0.05283496,135.54,135.53,3.29]
[1765209051096,0.05283496,135.54,135.52,6.6409]
[1765209051299,0.05283496,135.54,135.52,9.9309]
[1765209051896,0.05283496,135.54,135.53,3.29]
[1765209052098,3.01,135.59,135.55,3.29]
[1765209052298,65.77,135.6,135.55,3.29]
[1765209052602,65.77,135.6,135.56,9.929]
[1765209052990,0.05387573,135.59,135.57,0.04919014]
[1765209054601,3.06387573,135.59,135.57,0.04919014]
[1765209055700,0.05387573,135.59,135.57,0.04919014]
[1765209057198,3.06387573,135.59,135.57,0.04919014]
[1765209058799,3.01,135.58,135.57,0.04919014]
[1765209059298,3.01,135.58,135.52,9.9308]
[1765209059299,9.6485,135.58,135.52,9.9308]
[1765209059488,3.01,135.58,135.52,9.9308]
[1765209059687,3.01,135.58,135.49,3.18]
[1765209060198,3.04,135.54,135.5,6.6421]
[1765209060402,0.05574401,135.53,135.51,0.05145889]
[1765209061308,0.05574401,135.53,135.52,3.18]
[1765209061490,5.27404911,135.6,135.52,3.18]
[1765209061798,6.638,135.59,135.53,9.8204]
[1765209062009,3.04,135.59,135.53,9.8204]
[1765209062397,3.09026037,135.57,135.55,0.05614201]
[1765209063289,0.05026037,135.57,135.55,3.23614201]
[1765209064195,0.05026037,135.57,135.55,9.87574201]
[1765209065100,62.74,135.6,135.58,3.18]
[1765209065588,62.74,135.6,135.59,3.18]
[1765209065788,3.04,135.64,135.59,3.18]
[1765209066203,3.04,135.64,135.6,0.05636409]
[1765209066204,0.04894962,135.63,135.6,0.05636409]
[1765209067199,0.04894962,135.63,135.6,3.23636409]
[1765209067602,0.04894962,135.63,135.6,106.48006409]
[1765209067790,0.04894962,135.63,135.62,3.18]
[1765209068209,6.6326,135.7,135.64,3.18]
[1765209068210,11.9509773,135.7,135.64,3.18]
[1765209068504,3.04,135.71,135.64,3.18]
[1765209068802,3.04,135.71,135.61,3.18]
[1765209068996,9.6726,135.7,135.63,9.8156]
[1765209069196,0.05174859,135.68,135.65,3.2301028]
[1765209069397,3.09174859,135.68,135.65,0.0501028]
[1765209069999,0.05174859,135.68,135.65,9.8647028]
[1765209070304,3.09174859,135.68,135.65,0.0501028]
[1765209071590,3.04,135.66,135.58,3.18]
[1765209071790,3.04,135.66,135.59,3.18]
[1765209072198,3.04,135.66,135.6,3.18]
[1765209072602,0.0488823,135.64,135.62,0.05226899]
[1765209073702,3.0888823,135.64,135.62,0.05226899]
[1765209074002,0.0488823,135.64,135.62,3.23226899]
[1765209075003,0.0488823,135.64,135.62,0.05226899]
[1765209075905,3.0888823,135.64,135.62,0.05226899]
[1765209076312,3.0888823,135.64,135.56,3.18]
[1765209076613,3.04,135.62,135.56,3.18]
[1765209076997,65.76,135.62,135.56,3.18]
[1765209077199,3.04,135.61,135.53,3.18]
[1765209077411,0.04833101,135.58,135.56,0.0492868]
[1765209077910,0.04833101,135.58,135.56,3.2292868]
[1765209078303,0.04833101,135.58,135.57,3.07]
[1765209078709,3.30833101,135.58,135.56,0.0492868]
[1765209080012,3.26,135.57,135.51,6.6413]
[1765209080208,3.26,135.55,135.5,3.07]
[1765209080708,62.72,135.56,135.52,3.07]
[1765209081214,9.8985,135.58,135.5,103.3189]
[1765209081215,0.05298686,135.55,135.53,3.12499088]
[1765209081411,8.52118188,135.61,135.54,3.07]
[1765209081617,65.98,135.61,135.54,3.07]
[1765209082114,16.78095122,135.64,135.54,3.07]
[1765209082307,16.78095122,135.64,135.25,45.73084051]
[1765209082308,3.26,135.64,135.58,3.07]
[1765209082614,0.05258134,135.62,135.6,3.11795211]
[1765209082799,0.0541364,135.62,135.6,3.11795211]
[1765209084417,3.26,135.67,135.61,3.07]
[1765209084913,6.6335,135.68,135.63,3.07]
[1765209085108,69.3524,135.7,135.63,3.07]
[1765209085414,0.0520269,135.68,135.65,0.05192271]
[1765209085812,0.0520269,135.68,135.65,3.12192271]
[1765209087015,0.0520269,135.68,135.65,9.75652271]
[1765209087209,0.0520269,135.68,135.66,3.07]
[1765209090713,3.3120269,135.68,135.61,3.07]
[1765209090913,62.7,135.67,135.61,3.07]